Cogmind - Beta 15 @@@ ROGUE MODE // 2025.05.31 @ 18:29:42 Player: Xenocore Result: Destroyed by E3-NEW(R) with Subdweller Laser Performance ------------- Evolutions (0) 0 Regions Visited (2) 400 Robots Destroyed (34) 170 Value Destroyed (710) 710 Prototype IDs (2) 40 Alien Tech Used (0) 0 Bonus (0) 0 TOTAL SCORE: 1320 Bonus ------- None Cogmind --------- Core Integrity 0/250 Matter 212/300 Energy 80/100 System Corruption 0% Temperature Cool (6) Movement Walking (260) Ox2 Location -10/Subcaves Parts ------- > --- POWER (1) -------- (None) > --- PROPULSION (2) --- Aluminum Leg > --- UTILITY (2) ------ Large Storage Unit Signal Interpreter > --- WEAPON (2) ------- Battle Rifle Battle Rifle > --- INVENTORY (15) --- Ion Engine Aluminum Leg Medium Matter Pod (100) Signal Interpreter Signal Interpreter Targeting Computer Light Armor Plating Makeshift System Restoration Module Medium Laser Subdweller Laser Subdweller Laser Makeshift Hammer Peak State ------------ > --- POWER ------------ Ion Engine > --- PROPULSION ------- Aluminum Leg Aluminum Leg > --- UTILITY ---------- Large Storage Unit Signal Interpreter > --- WEAPON ----------- Grenade Launcher Makeshift Hammer > --- INVENTORY -------- Ion Engine Aluminum Leg Aluminum Leg Medium Matter Pod Signal Interpreter Signal Interpreter Targeting Computer Light Armor Plating Makeshift System Restoration Module Medium Laser Subdweller Laser Subdweller Laser Battle Rifle Battle Rifle Light Cannon [Rating: 12] Favorites ----------- Power Ion Engine Engine Ion Engine Propulsion Aluminum Leg Leg Aluminum Leg Wheel Compact Wheel Utility Signal Interpreter Storage Large Storage Unit Processor Signal Interpreter Weapon Light Assault Rifle Energy Gun Medium Laser Ballistic Gun Light Assault Rifle Ballistic Cannon Light Cannon Launcher Grenade Launcher Impact Weapon Makeshift Hammer Build | -11 -10 -10 ------- Run | Yrd Mat Sub Slots Evolved . | . . . Power . | . . . Propulsion . | . . . Utility . | . . . Weapon . | . . . Parts Attached 25 | 6 11 8 Power 4 | 1 2 1 Engine 4 | 1 2 1 Core . | . . . Reactor . | . . . Propulsion 8 | 2 3 3 Treads . | . . . Leg 4 | . 3 1 Wheel 4 | 2 . 2 Hover . | . . . Flight . | . . . Utility 3 | 1 2 . Device . | . . . Storage 2 | 1 1 . Processor 1 | . 1 . Hackware . | . . . Protection . | . . . Artifact . | . . . Weapon 10 | 2 4 4 Energy Gun 2 | . 2 . Energy Cannon . | . . . Ballistic Gun 5 | 2 1 2 Ballistic Cannon 1 | . . 1 Launcher 1 | . 1 . Special Weapon . | . . . Impact Weapon 1 | . . 1 Slashing Weapon . | . . . Piercing Weapon . | . . . Special Melee Weapon . | . . . Unidentified Prototypes . | . . . Parts Lost 14 | . 8 6 Power 4 | . 2 2 Propulsion 5 | . 3 2 Utility . | . . . Weapon 5 | . 3 2 Highest Loss Streak 5 | . 3 5 To Critical Strikes . | . . . Average Backups 12 | 2 11 13 Power 1 | . 1 1 Propulsion 2 | 1 3 2 Utility 4 | . 4 5 Weapon 3 | . 1 4 Tool/Special . | . . . Unused Backups 16 | . 4 12 Power 2 | . 1 1 Propulsion 3 | . 2 1 Utility 7 | . . 7 Weapon 4 | . 1 3 Tool/Special . | . . . Average Slot Usage (%) 94 | . 89 99 Engine 12 | . 11 13 Leg 19 | . 11 26 Wheel 5 | . 10 1 Storage 14 | . 14 14 Processor 13 | . 13 14 Energy Gun 7 | . 6 8 Ballistic Gun 10 | . 19 2 Launcher 6 | . 1 10 Impact Weapon 2 | . . 4 Peak Build Rating 12 | 6 9 12 Average Rating 8 | 4 7 9 On Entrance 4 | . 6 8 Naked Turns . | . . . Heaviest Build 31 | 10 29 31 Greatest Support 40 | 26 26 40 Greatest Overweight (x) 3 | 3 2 1 Average Overweight (x) . | . . . Largest Inventory Capacity 15 | 8 15 15 Average Capacity 14 | 7 14 15 Most Carried 15 | 6 15 15 Average Carried 12 | 3 11 13 Final Capacity 15 | 8 15 15 Final Carried 12 | 6 10 12 Class Distribution -------------------- 100% | Mutant Dominant Class ---------------- Mutant | -10/Materials Mutant | -10/Subcaves Resources | -11 -10 -10 ----------- Run | Yrd Mat Sub Matter Collected 913 | 245 481 187 Remotely . | . . . Salvage Created 836 | . 544 292 Parts 57 | . 41 16 Haulers Intercepted . | . . . Recyclers Shooed . | . . . Parts Field Recycled . | . . . Retrieved Matter . | . . . Parts Self-Destructed 11 | . . 11 Prevented . | . . . Kills | -11 -10 -10 ------- Run | Yrd Mat Sub Combat Hostiles Destroyed 25 | . 19 6 Guns 15 | . 13 2 Cannons 1 | . . 1 AOE 7 | . 6 1 Classes Destroyed 8 | . 7 1 Worker 2 | . 2 . Builder 1 | . 1 . Tunneler 2 | . 2 . Operator 1 | . 1 . Watcher 3 | . 3 . Swarmer 12 | . 12 . Grunt 8 | . 7 1 Subdweller 5 | . . 5 Best Kill Streak 6 | . 6 2 Combat Bots Only 6 | . 6 2 Max Kills in Single Turn 4 | . 4 1 Gunslinging . | . . . Exploded 2 | . 2 1 Melee . | . . . Uniques/NPCs Destroyed . | . . . Combat | -11 -10 -10 -------- Run | Yrd Mat Sub Hostile Shots Fired 140 | . 104 36 Missed 38 | . 25 13 Hits 102 | . 79 23 Projectile 102 | . 79 23 AOE 3 | . . 3 Critical Strikes 2 | . 1 1 Damage Taken 1459 | . 759 700 Core 257 | . 139 118 Absorbed by Shields . | . . . Regen/Repaired (Parts) 56 | . 56 . Core Remaining (%) 100 | 100 . . Volleys Fired 94 | . 72 22 Largest 2 | . 2 2 Hottest 85 | . 85 80 Shots Fired 178 | . 136 42 Gun 153 | . 126 27 Cannon 7 | . . 7 Launcher 18 | . 10 8 Special . | . . . Kinetic 123 | . 101 22 Thermal 37 | . 25 12 Explosive 18 | . 10 8 Electromagnetic . | . . . Robot Hit Streak 7 | . 7 6 Robot Miss Streak 5 | . 5 2 Penetration Max . | . . . Secondary Targets 3 | . 2 1 Max Gunslinging Chain 1 | . 1 1 Shots Hit Robots 102 | . 69 33 Core Hits 57 | . 47 10 Critical Kills 1 | . 1 . Critical Parts Destroyed 3 | . 1 2 Critical Strikes 8 | . 3 5 Burn 4 | . 1 3 Destroy 2 | . 2 . Smash 2 | . . 2 Melee Attacks 8 | . . 8 Impact 8 | . . 8 Slashing . | . . . Piercing . | . . . Sneak Attacks . | . . . Combat Hostiles . | . . . Follow-up Attacks . | . . . Damage Inflicted 2372 | . 1194 1178 Guns 828 | . 607 221 Cannons 87 | . . 87 Explosions 931 | . 587 344 Melee 526 | . . 526 Ramming . | . . . Kinetic 679 | . 459 220 Thermal 236 | . 148 88 Explosive 931 | . 587 344 Electromagnetic . | . . . Impact 526 | . . 526 Slashing . | . . . Piercing . | . . . Highest Corruption . | . . . Average Corruption . | . . . Corruption Purged . | . . . Corruption Blocked . | . . . Overload Shots . | . . . Overflow Damage 308 | . 7 301 Projectiles . | . . . Explosions 7 | . 7 . Melee 301 | . . 301 Knockbacks 8 | . . 8 Impact 5 | . . 5 Kinetic 3 | . . 3 Secondary . | . . . Self-Inflicted Damage 63 | . 63 . Shots 3 | . 3 . Rammed . | . . . Targets Rammed . | . . . Kicked . | . . . Crushed . | . . . Highest Temperature 304 | . 304 1 Average Temperature 69 | . 70 1 Received Heat Transfer 240 | . 123 117 Siege Activations . | . . . Martial Activations . | . . . Shielding Activations . | . . . Robots Disrupted . | . . . Combat Hostiles . | . . . Robots Corrupted 4 | . . 4 Combat Hostiles 4 | . . 4 Parts Fried 3 | . . 3 Impact Corruptions 6 | . . 6 Robots Melted 1 | . . 1 Combat Hostiles 1 | . . 1 Parts Melted 4 | . 3 1 Heat Transferred 925 | . 444 481 Parts Sabotaged . | . . . Parts Stolen . | . . . Parts Stripped . | . . . Power Chain Reactions . | . . . Alert | -11 -10 -10 ------- Run | Yrd Mat Sub Maximum Alert Level . | . . . Low Security (%) 100 | 100 100 . Level 1 . | . . . Level 2 . | . . . Level 3 . | . . . Level 4 . | . . . Level 5 . | . . . High Security . | . . . Max Security . | . . . Peak Influence 131 | . 131 . Initial . | . . . Average 59 | . 61 . Influence Increases 639 | . 619 20 Destroy 0b10 Robot/C 400 | . 380 20 Destroy 0b10 Robot/NC 45 | . 45 . Destroy Leader 66 | . 66 . Successful Hack 18 | . 18 . Disable Machine 30 | . 30 . Destroy Structure 65 | . 65 . Lose Combat Pursuer 15 | . 15 . Influence Decreases 639 | . 550 89 Entered New Map 34 | . . 34 Time Decay 525 | . 470 55 Lost Part 80 | . 80 . Squads Dispatched 1 | . 1 . Investigation 1 | . 1 . Extermination . | . . . Reinforcement . | . . . Assault . | . . . Garrison . | . . . Intercept . | . . . Searches Triggered . | . . . Construction Impeded . | . . . Haulers Reinforced . | . . . Active Scanning Responses . | . . . Cargo Convoy Interrupts . | . . . Stealth | -11 -10 -10 --------- Run | Yrd Mat Sub Distress Signals 3 | . 3 . Communications Jammed . | . . . Distress Signals . | . . . Times Spotted 36 | . 25 11 Peak Tracking Total 4 | . 4 4 Tactical Retreats 2 | . 1 1 Traps | -11 -10 -10 ------- Run | Yrd Mat Sub Traps Triggered 3 | . 1 2 Indirectly . | . . . Trap Hack Attempts . | . . . Triggered . | . . . Disarmed . | . . . Reprogrammed . | . . . Reused . | . . . Traps Extracted . | . . . Installed . | . . . Triggered . | . . . Machines | -11 -10 -10 ---------- Run | Yrd Mat Sub Machines Disabled 2 | . 2 . Max in Single Turn 1 | . 1 . Machines Repaired . | . . . Machines Dismantled . | . . . Machines Sabotaged . | . . . Overloaded Fab Kills . | . . . Hacking | -11 -10 -10 --------- Run | Yrd Mat Sub Machines Accessed 12 | . 11 1 Terminals 8 | . 8 . Fabricators . | . . . Repair Stations 1 | . 1 . Recycling Units 2 | . 2 . Scanalyzers . | . . . Garrison Access . | . . . Total Hacks 31 | . 27 4 Successful 19 | . 15 4 Failed 12 | . 12 . Catastrophic 2 | . 2 . Database Lockouts . | . . . Manual 9 | . 9 . Terminals 22 | . 22 . Fabricators . | . . . Repair Stations 2 | . 2 . Recycling Units 3 | . 3 . Scanalyzers . | . . . Garrison Access . | . . . Terminal Hacks 14 | . 10 4 Record 6 | . 2 4 Robot Analysis 2 | . 2 . Prototype ID Bank 1 | . 1 . Branch Access Points 1 | . 1 . Emergency Access Points 1 | . 1 . Locate Traps 1 | . 1 . Zone Layout 2 | . 2 . Fabricator Hacks . | . . . Repair Station Hacks 2 | . 2 . Scan Component 1 | . 1 . Repair 1 | . 1 . Recycling Unit Hacks . | . . . Scanalyzer . | . . . Garrison Access Hacks . | . . . Unauthorized Hacks . | . . . Terminals . | . . . Fabricators . | . . . Repair Stations . | . . . Recycling Units . | . . . Scanalyzers . | . . . Garrison Access . | . . . Data Cores Recovered 1 | . 1 . Used . | . . . Hacking Detections 8 | . 8 . Full Trace Events . | . . . Feedback Events . | . . . Feedback Blocked . | . . . Robot Schematics Acquired . | . . . Robots Built . | . . . Authchips . | . . . Time . | . . . Total Robot Build Rating . | . . . Part Schematics Acquired . | . . . Parts Built . | . . . Authchips . | . . . Time . | . . . Total Part Build Rating . | . . . Parts Repaired 1 | . 1 . Time 26 | . 26 . Parts Recycled . | . . . Recycled Matter . | . . . Retrieved Matter . | . . . Retrieved Components . | . . . Parts Scanalyzed . | . . . Part Schematics Acquired . | . . . Parts Damaged . | . . . Bothacking | -11 -10 -10 ------------ Run | Yrd Mat Sub Used RIF Installer . | . . . Robots Hacked . | . . . Non-combat . | . . . Combat . | . . . Robot Hacks Applied . | . . . Relay Couplers Released . | . . . Fabnet Peak Effective % . | . . . Robots Rewired . | . . . Allies Hacked . | . . . Hacks Repelled . | . . . Allies | -11 -10 -10 -------- Run | Yrd Mat Sub Total Allies . | . . . Largest Group . | . . . Highest-Rated Group . | . . . Highest-Rated Ally . | . . . Total Orders . | . . . Ally Attacks . | . . . Total Damage . | . . . Kills . | . . . Allies Corrupted . | . . . Allies Melted . | . . . Intel | -11 -10 -10 ------- Run | Yrd Mat Sub Active Infowar (turns) . | . . . Robot Analysis Total 2 | . 2 . Derelict Logs Recovered . | . . . Drone Launches . | . . . Drone Recoveries . | . . . Exploration | -11 -10 -10 ------------- Run | Yrd Mat Sub Turns Passed 3649 | 62 1723 1864 Spaces Moved 1923 | 40 945 938 Core 16 | 16 . . Treads . | . . . Legs 1219 | . 353 866 Wheels 688 | 24 592 72 Hover . | . . . Flight . | . . . Fastest Speed 50 | 50 90 110 Average Speed 162 | 117 143 184 Slowest Speed 260 | 200 260 190 Overloaded Moves . | . . . Propulsion Burnouts . | . . . Robots Hopped . | . . . Potential Cave-ins . | . . . Cave-ins Triggered . | . . . Exploration Rate (%) 44 | 4 100 28 Regions Visited 2 Branch Regions 1 Pre-discovered Areas . | . . . Known Exits Taken 1 | . 1 . Unknown Exits Taken 1 | 1 . . Scrap Searched 11 | . . 11 Spaces Dug 25 | . 25 . Terrain Destroyed 117 | . 66 51 Melee . | . . . Projectile . | . . . AOE 117 | . 66 51 Terrain Rammed . | . . . Walls Destroyed . | . . . Machines Disabled . | . . . Actions | -11 -10 -10 --------- Run | Yrd Mat Sub Total 2264 | 51 1188 1025 Wait 150 | . 130 20 Move 1921 | 39 944 938 Hop . | . . . Pick Up 35 | 6 16 13 Fast Attach 9 | 6 2 1 Attach 13 | . 7 6 Detach . | . . . Swap 20 | . 12 8 Drop 14 | . 5 9 Fire 94 | . 72 22 Melee 8 | . . 8 Ram . | . . . Kick . | . . . Crush . | . . . Escape Stasis . | . . . Rewire . | . . . Trap . | . . . Miscellaneous . | . . . Route ------- -11/Scrapyard -10/Materials (discovered 6 exits: *Mat x3 / *Min x2 / *Sub) -10/Subcaves History --------- Turn | Location | Event 10 | -11/Scrapyard | Discovered new exit (range 16) 63 | -11/Scrapyard | Entered Materials 70 | -10/Materials | Identified exit to Mines 167 | -10/Materials | Discovered new exit (range 12) 307 | -10/Materials | Build established: Mutant 554 | -10/Materials | Discovered new exit (range 9) 922 | -10/Materials | Core integrity fell below 50% 1042 | -10/Materials | Lost 3 parts (1p2w) 1236 | -10/Materials | Discovered new exit (range 4) 1240 | -10/Materials | Identified exit to Materials 1350 | -10/Materials | Repaired Grenade Launcher 1772 | -10/Materials | Discovered new exit (range 8) 1784 | -10/Materials | Identified exit to Subcaves 1786 | -10/Materials | Entered Subcaves 1787 | -10/Subcaves | Approached by a straggling Scientist 1810 | -10/Subcaves | A swath of the cavern ceiling suddenly collapsed 2618 | -10/Subcaves | A swath of the cavern ceiling suddenly collapsed 3550 | -10/Subcaves | Visited Clippyterm 3556 | -10/Subcaves | Learned Research security intel 3583 | -10/Subcaves | Core integrity fell below 20% 3641 | -10/Subcaves | Ambushed by Subdweller buried in earth 3641 | -10/Subcaves | Ambushed by Subdweller buried in earth 3650 | -10/Subcaves | Destroyed by E3-NEW(R) with Subdweller Laser Last Messages --------------- 03602_ CJ-EX3(R) system terminally corrupted. 03602_ Sub. Beam Cannon fried. 03603_ Acquired 20 matter. 03623_ F6-32V(R) affixes Scrap Shield Fragment to Scrap Shield. 03624_ MF-P2G(R) knocked back. 03624_ Grenade Launcher destroyed. 03629_ Ion Engine destroyed. 03629_ Aluminum Leg destroyed. 03630_ MF-P2G(R) destroyed. 03631_ Clippyterm disabled. 03631_ Machine disabled. 03633_ F6-32V(R) knocked back. 03636_ Lgt. Cannon destroyed. 03642_ ZY-O87(R): "ARGHSUB!" 03642_ EU-H70(R): "ARGHSUB!" 03642_ E3-NEW(R): "ARGHSUB!" 03644_ Aluminum Leg destroyed. 03645_ EU-H70(R) destroyed. 03647_ F6-32V(R) destroyed. 03647_ Switching to secondary target: ZY-O87(R). Map ----- +----------------------------------------------------+ | ?????????????????????????????????????????????????? | | ?????????????????????????????????????????????????? | | ?????????????????????????????????????????????????? | | ?????????????????????????????????????????????????? | | ?????????????????????????????????????????????????? | | ?????????????????????????????????????????????????? | | ?????????????????????????????????????????????????? | | ?????????????????????????????????????????????????? | | ?????????????????????????????????????????????????? | | ?????????????????????????????????????????????????? | | ?????????????????????????????????????????????????? | | ?????????????????????????????????????????????????? | | ????????????????????###????????????????????????#?# | | ?????????????""? ### ######????????????????## ?? | | ?????????????" ; #????????????????# ?? | | ??????????????" ; #????????????????# #?? | | ??????????????" ##???????????????# #?? | | ??????????????#" ? [ ?????????####?### #?? | | ???????????????" # %! ????????## ### ##? | | ???????????????## # R ##???????# " ## | | ???????????????#" R ##??????##" = | | ???????????????##" #?????## #"### #= # | | ???????????????# " #????##"#""#?###### | | ???????????????# " #?####"#"###????## | | ?????????????????# # ###" "#"#""#????# | | ?????????????????# @ ## ""#######??# | | ?????????????????# #"#""#""""#??# | | ?????????????????## # ;#"#""####??#### | | ??????????????????### ;#;#"#"# ????#"##" | | ????????????????????#; ;;#""##"" ????#"#### | | ????????????????????#### * # ##;;#"##"#????#""### | | ???????????????????????# % ####;;#####????###"" | | ??????????????????????? %| ??#####????????# ## | | ??????????????????????? % #??????????????### # | | ????????????????????? %= #???????????????# & | | ??????????????????? #???????????????#"[ ! | | ????????????????? # # ##???????????????#&%!" | | ??????????????? ##### #????????????????#&!& | | ????????????? ### ###????###????????????????#%&"" | | ???????????? ???# ???????????????????????????##### | | ????????????????#????????????????????????????????? | | ?????????????????????????????????????????????????? | | ?????????????????????????????????????????????????? | | ?????????????????????????????????????????????????? | | ?????????????????????????????????????????????????? | | ?????????????????????????????????????????????????? | | ?????????????????????????????????????????????????? | | ?????????????????????????????????????????????????? | | ?????????????????????????????????????????????????? | | ?????????????????????????????????????????????????? | +----------------------------------------------------+ Best States ------------- Heat Dissipation 25 Energy Generation 10 Energy Capacity 250 Matter Stores 300 Matter Capacity 300 Sight Range 16 Terrain Scan Density 10 Evasion (%) 44 Item Schematics ----------------- None Robot Schematics ------------------ None Fabricated ------------ Nothing Repaired ---------- Grenade Launcher | 6% | -10/Materials Alien Tech Used ----------------- None Achievements -------------- Power Corrupts Challenges ------------ None Game ------ Seed NavigationFissionPenetrator Manual? 0 Play Time 00:35:05 Cumulative 9.3 hours Start 2025.05.31 @ 17:54:34 End 2025.05.31 @ 18:29:42 Sessions 1 Manual Loads 0 Difficulty Rogue Special Mode None Game No. 9 Rogue 9 Adventurer 0 Explorer 0 Win Type - Total 0 Types 0/0/0/0/0/0/0/0/0/0 Lore% 11 Gallery% 8 Achievement% 10 Wizard Run 0 Options --------- Layout 0 ASCII 0 Keyboard 0 Movement Mouse Keybinds 0 Fullscreen 1 Font 18/SmallcapsGlow Map View 76x50 Zoom Use 0% Tactical HUD 1 Map Filters NONE Filters NONE Steam X RUN: c079e8f5-65e4-45c6-a63f-c2327bfc50d4